[Event "11th Tamil Nadu Circuit-IM 2024"]
[Site "Chennai"]
[Date "2024.01.14"]
[Round "9.3"]
[White "Podolchenko, Evgeniy"]
[Black "Hemanth Raam"]
[Result "1/2-1/2"]
[ECO "D13"]
[WhiteElo "2357"]
[BlackElo "2161"]
[Annotator "RC"]
[PlyCount "21"]
[EventDate "2024.01.09"]
[EventType "tourn"]
[EventCountry "IND"]
[SourceTitle "playchess.com"]
[Source "ChessBase"]
[SourceQuality "1"]
[TimeControl "5400+30"]

1. d4 {[%emt 0:00:30]} d5 {[%emt 0:00:06]} 2. c4 {[%emt 0:00:00]} c6 {[%emt 0:00:04]} 3. Nc3 {[%emt 0:00:00]} Nf6 {[%emt 0:00:12]} 4. cxd5 {[%emt 0:00:00]} cxd5 {[%emt 0:00:08]} 5. Nf3 {[%emt 0:00:00]} Nc6 {[%emt 0:00:07]} 6. Bf4 {[%emt 0:00:03]} Nh5 {[%emt 0:00:09]} 7. Bd2 {[%emt 0:00:10]} Nf6 {[%emt 0:00:10]} 8. Bf4 {[%emt 0:00:04]} Nh5 {[%emt 0:00:08]} 9. Bd2 {[%emt 0:00:05]} Nf6 {[%emt 0:00:07]} 10. Bf4 {[%emt 0:00:03]} Nh5 {[%emt 0:00:35]} 11. Bd2 {[%emt 0:00:01]} 1/2-1/2

[Event "11th Tamil Nadu Circuit-IM 2024"]
[Site "Chennai"]
[Date "2024.01.14"]
[Round "9.4"]
[White "Khusenkhojaev, Muhammad"]
[Black "Manik, Mikulas"]
[Result "1/2-1/2"]
[ECO "A36"]
[WhiteElo "2379"]
[BlackElo "2342"]
[Annotator "RC"]
[PlyCount "60"]
[EventDate "2024.01.09"]
[EventType "tourn"]
[EventCountry "IND"]
[SourceTitle "playchess.com"]
[Source "ChessBase"]
[SourceQuality "1"]
[TimeControl "5400+30"]

1. c4 {[%emt 0:00:02]} g6 {[%emt 0:00:05]} 2. g3 {[%emt 0:00:04]} Bg7 {[%emt 0:00:05]} 3. Bg2 {[%emt 0:00:02]} c5 {[%emt 0:00:05]} 4. Nc3 {[%emt 0:00:05]} Nc6 {[%emt 0:00:06]} 5. e3 {[%emt 0:00:01]} e6 {[%emt 0:00:06]} 6. Nge2 {[%emt 0:00:06]} Nge7 {[%emt 0:00:07]} 7. O-O {[%emt 0:00:10]} O-O {[%emt 0:00:07]} 8. d4 {[%emt 0:00:04]} cxd4 {[%emt 0:00:09]} 9. Nxd4 {[%emt 0:00:04]} Nxd4 {[%emt 0:00:09]} 10. exd4 {[%emt 0:00:06]} d5 {[%emt 0:00:04]} 11. cxd5 {[%emt 0:00:05]} Nxd5 {[%emt 0:00:26]} 12. Nxd5 {[%emt 0:00:03]} exd5 {[%emt 0:00:06]} 13. Be3 {[%emt 0:00:04]} Be6 {[%emt 0:00:09]} 14. Qd2 {[%emt 0:00:03]} Qd7 {[%emt 0:00:05]} 15. Bh6 {[%emt 0:00:04]} Bh3 {[%emt 0:00:08]} 16. Bxg7 {[%emt 0:00:05]} Kxg7 {[%emt 0:00:06]} 17. Rfe1 {[%emt 0:00:10]} Rfe8 {[%emt 0:00:21]} 18. a3 {[%emt 0:00:04]} Bxg2 {[%emt 0:00:15]} 19. Kxg2 {[%emt 0:00:03]} a6 {[%emt 0:00:08]} 20. Rxe8 {[%emt 0:00:08]} Rxe8 {[%emt 0:00:05]} 21. Re1 {[%emt 0:00:04]} Rxe1 {[%emt 0:00:27]} 22. Qxe1 {[%emt 0:00:05]} f6 {[%emt 0:00:07]} 23. f3 {[%emt 0:00:05]} Kf7 {[%emt 0:00:19]} 24. Kf2 {[%emt 0:00:05]} Qc8 {[%emt 0:00:19]} 25. Qd2 {[%emt 0:00:18]} Qc4 {[%emt 0:00:35]} 26. Kg2 {[%emt 0:00:15]} g5 {[%emt 0:00:10]} 27. g4 {[%emt 0:00:05]} b5 {[%emt 0:00:08]} 28. Kf2 {[%emt 0:00:09]} Kg7 {[%emt 0:00:06]} 29. Kg2 {[%emt 0:00:05]} Kf7 {[%emt 0:00:05]} 30. Kf2 {[%emt 0:00:05]} Kg7 {[%emt 0:00:03]} 1/2-1/2